Cogmind - Beta 11.1 @@@ ROGUE MODE // 2022.10.01 @ 09:57:05 Player: ldi (hl). (hl) Result: Destroyed by H-77 Assassin with Coil Gun Performance ------------- Evolutions (7) 3500 Regions Visited (25) 5000 Robots Destroyed (276) 1380 Value Destroyed (13331) 13331 Prototype IDs (46) 920 Alien Tech Used (2) 400 Bonus (9433) 9433 TOTAL SCORE: 33964 Bonus ------- Triggered High Security 500 High Alert Combat Kills 3544 Follower Combat Kills 3348 Entered Garrisons 600 Used RIF Installer 1500 Network Hubs Disabled 200 Met Data Miner 300 Met Zhirov 300 Built Enhanced Grunts 300 Met R17 at Cetus 500 Friendly Fire -1659 Cogmind --------- Core Integrity 0/1300 Matter 254/300 Energy 98/100 System Corruption 10% Temperature Cool (9) Movement Core (50) Location -3/Research Parts ------- > --- POWER (2) -------- (None) > --- PROPULSION (4) --- (None) > --- UTILITY (11) ----- (None) > --- WEAPON (4) ------- (None) > --- INVENTORY (5) ---- High-capacity Storage Unit Advanced Particle Charger Field Laser Molecular Deconstructor Peak State ------------ > --- POWER ------------ Neutrino Core Reinforced Fission Core > --- PROPULSION ------- Advanced Heavy Treads Centrium Heavy Treads > --- UTILITY ---------- High-capacity Storage Unit Advanced Visual Processing Unit Improved Target Analyzer Core Analyzer Experimental Utility Shielding Improved Medium Armor Plating Centrium Medium Armor Plating Advanced Force Field Advanced Force Field Makeshift Hacking Suite Advanced Hacking Suite > --- WEAPON ----------- Coil Gun KE Penetrator KE Penetrator Advanced KE Penetrator > --- INVENTORY -------- Light Antimatter Reactor Centrium Heavy Treads Advanced Cooling System High-capacity Storage Unit Advanced Energy Well Advanced Particle Charger Hardened Medium Armor Plating Centrium Medium Armor Plating Experimental Focal Shield Experimental Focal Shield Advanced Thermal Shield Advanced Thermal Shield Transdimensional Reconstructor Heavy Beamcaster Advanced Variable Charge Gun Advanced KE Penetrator Heavy Missile Launcher Molecular Deconstructor [Rating: 143] Favorites ----------- Power Reinforced Fission Core Engine Heavy Ion Engine Power Core Reinforced Fission Core Reactor Antimatter Reactor Propulsion Aluminum Leg Treads Armored Medium Treads Leg Aluminum Leg Wheel High-density Centrium Wheel Utility Large Storage Unit Device Improved Heat Sink Storage Large Storage Unit Processor Core Analyzer Hackware Makeshift Hacking Suite Protection Hardened Light Armor Plating Weapon Gauss Rifle Energy Gun Precision Beam Rifle Energy Cannon Ion Cannon Ballistic Gun Gauss Rifle Ballistic Cannon Hardcell Cannon Launcher Heavy Missile Launcher Special Weapon Flamer Build | -11 -10 -9 -8 -8 -8 -7 -7 -7 -7 -7 -7 -6 -6 -6 -5 -5 -5 -5 -4 -4 -4 -4 -4 -4 -3 ------- Run | Scr Mat Mat Mat Sto Gar Fac Gar Fac Low Low Dat Pro Fac Gar Fac Upp Upp Zhi Pro Fac Ext Cet Arc Hub Res Slots Evolved 14 | . . 2 2 . . 2 . . . . . . 2 . 2 . . . . 2 . . . . 2 Power 1 | . . . . . . . . . . . . . . . . . . . . 1 . . . . . Propulsion 2 | . . 1 . . . . . . . . . . . . 1 . . . . . . . . . . Utility 9 | . . . 2 . . 2 . . . . . . 2 . . . . . . 1 . . . . 2 Weapon 2 | . . 1 . . . . . . . . . . . . 1 . . . . . . . . . . Parts Attached 255 | 6 4 18 10 11 7 9 15 5 4 5 . . 3 5 26 3 1 10 25 17 24 2 . 6 39 Power 20 | 1 . 2 1 1 . . . 1 . . . . 1 . 4 . . 1 . 3 4 . . . 1 Engine 8 | 1 . 1 1 1 . . . 1 . . . . 1 . 2 . . . . . . . . . . Core 6 | . . 1 . . . . . . . . . . . . 1 . . . . 1 3 . . . . Reactor 6 | . . . . . . . . . . . . . . . 1 . . 1 . 2 1 . . . 1 Propulsion 61 | 2 2 6 2 . 4 3 6 1 1 1 . . . . 6 . . 1 6 4 5 1 . . 10 Treads 21 | . . . . . 3 3 . . . . . . . . 5 . . 1 . 1 3 1 . . 4 Leg 34 | 2 2 6 2 . 1 . 6 1 1 1 . . . . 1 . . . 6 3 2 . . . . Wheel 6 | . . . . . . . . . . . . . . . . . . . . . . . . . 6 Hover . | . . . . . . . . . . . . . . . . . . . . . . . . . . Flight . | . . . . . . . . . . . . . . . . . . . . . . . . . . Utility 86 | 1 2 1 7 2 1 2 6 3 1 . . . 2 2 11 2 1 4 7 5 7 . . 1 18 Device 23 | . . . 1 . 1 . 2 . . . . . 1 . 4 . . 3 2 . 1 . . . 8 Storage 8 | 1 1 . . . . . . . . . . . . . 1 . . 1 1 . 2 . . . 1 Processor 14 | . 1 . . . . 1 . 1 . . . . . . 2 2 . . 1 2 . . . . 4 Hackware 3 | . . . . . . . . 1 . . . . 1 . . . . . . . . . . . 1 Protection 38 | . . 1 6 2 . 1 4 1 1 . . . . 2 4 . 1 . 3 3 4 . . 1 4 Artifact . | . . . . . . . . . . . . . . . . . . . . . . . . . . Weapon 88 | 2 . 9 . 8 2 4 3 . 2 4 . . . 3 5 1 . 4 12 5 8 1 . 5 10 Energy Gun 14 | . . 4 . 1 . 2 1 . . 1 . . . . 1 . . . 1 2 . . . 1 . Energy Cannon 16 | . . . . 2 1 2 1 . . 1 . . . 1 1 . . . 4 . 1 . . 1 1 Ballistic Gun 42 | 2 . 4 . 5 . . . . . 2 . . . 1 3 1 . 3 4 3 4 1 . 2 7 Ballistic Cannon 1 | . . . . . . . . . . . . . . . . . . . . . 1 . . . . Launcher 11 | . . 1 . . 1 . 1 . . . . . . 1 . . . . 3 . 1 . . 1 2 Special Weapon 4 | . . . . . . . . . 2 . . . . . . . . 1 . . 1 . . . . Impact Weapon . | . . . . . . . . . . . . . . . . . . . . . . . . . . Slashing Weapon . | . . . . . . . . . . . . . . . . . . . . . . . . . . Piercing Weapon . | . . . . . . . . . . . . . . . . . . . . . . . . . . Special Melee Weapon . | . . . . . . . . . . . . . . . . . . . . . . . . . . Unidentified Prototypes 21 | . . 1 . 3 . 2 . . . . . . . . 1 . . 3 1 . . 2 . 2 6 Corrupted Parts 6 | . . . . . . . . . . . . . . . . . . . 6 . . . . . . System Corruption 34 | . . . . . . . . . . . . . . . . . . . 34 . . . . . . Parts Lost 73 | . . 3 1 1 2 . 8 . . 3 . . 2 1 5 . . . 12 9 7 . . . 19 Power 5 | . . . . . . . . . . . . . 1 . 1 . . . . 1 . . . . 2 Propulsion 16 | . . 1 1 1 1 . 1 . . . . . . . 2 . . . 5 2 . . . . 2 Utility 25 | . . . . . 1 . 6 . . . . . 1 1 1 . . . 2 3 3 . . . 7 Weapon 27 | . . 2 . . . . 1 . . 3 . . . . 1 . . . 5 3 4 . . . 8 Highest Loss Streak 14 | . . 2 1 1 1 . 2 . . 2 . . 2 1 2 . . . 5 7 6 . . . 14 To Critical Strikes 1 | . . . . . . . . . . . . . . . . . . . . . . . . . 1 Average Slot Usage (%) 90 | . 88 92 90 98 97 93 95 99 99 99 100 100 95 94 92 88 88 87 83 91 86 89 89 89 73 Engine 3 | . 14 9 6 9 9 7 7 7 7 7 7 7 5 6 1 5 5 3 . . . . . . . Core 2 | . . 1 2 . . . . . . . . . . . 3 . . . . 2 6 10 10 10 6 Reactor 1 | . . . . . . . . . . . . . . . . . . 1 5 6 3 . . . . Treads 8 | . . . . . 14 23 17 . . . . . . . 12 17 17 17 10 . 8 10 10 10 7 Leg 10 | . 28 30 25 26 11 . 5 23 23 22 23 23 20 20 5 . . . 3 19 4 . . . . Device 6 | . . . 2 9 8 7 10 15 15 15 15 15 18 13 6 5 5 4 4 . 2 5 5 5 6 Storage 7 | . 14 11 9 9 9 7 7 7 7 7 7 7 6 6 5 5 5 5 7 5 7 10 10 10 4 Processor 12 | . 3 5 . . . 2 7 9 15 15 15 15 13 13 15 17 17 17 13 20 15 15 15 15 11 Hackware 3 | . . . . . . . . 3 . . . . 3 6 5 5 5 5 5 5 5 5 5 5 7 Protection 9 | . . 2 17 17 18 21 15 7 7 7 7 7 6 7 9 5 5 5 5 9 11 10 10 10 10 Energy Gun 3 | . . 13 9 1 . 5 11 15 8 7 7 7 6 1 3 . . . . 5 . . . . . Energy Cannon 1 | . . . . 7 8 6 2 . . . . . . . . 1 . . 6 . 1 . . 1 . Ballistic Gun 15 | . 28 18 18 17 18 8 7 7 1 7 15 15 13 15 18 21 23 22 13 14 14 20 21 18 13 Naked Turns 29 | . . . . . . . . . . . . . . . . . . . . . . . . . 29 Heaviest Build 141 | 10 25 36 50 51 51 57 57 44 42 47 44 44 46 53 72 72 67 70 90 101 126 126 122 127 141 Greatest Support 150 | 20 20 30 30 30 60 66 66 30 37 47 47 47 47 47 124 124 124 124 124 90 145 150 150 150 150 Greatest Overweight (x) 28 | . 1 1 2 2 5 . 4 1 1 1 . . . 1 1 . . . 28 1 1 . . . 1 Average Overweight (x) . | . . . 1 1 1 . . 1 1 . . . . . . . . . . . . . . . . Largest Inventory Capacity 20 | 8 15 15 15 15 15 15 15 15 15 15 15 15 15 15 15 15 15 15 15 15 20 20 20 20 20 Average Capacity 15 | 6 14 15 15 15 15 15 15 15 15 15 15 15 15 15 15 15 15 15 15 15 16 20 20 20 16 Most Carried 20 | 2 6 15 15 15 15 15 15 15 15 15 14 14 13 12 15 15 15 15 15 15 20 20 20 20 20 Average Carried 14 | . 3 9 14 13 13 14 14 14 14 13 14 14 12 11 13 15 14 14 14 14 15 19 20 19 15 Final Capacity 20 | 8 15 15 15 15 15 15 15 15 15 15 15 15 15 15 15 15 15 15 15 15 20 20 20 20 5 Final Carried 20 | 2 6 15 15 14 14 15 15 15 15 14 14 14 12 10 15 15 15 15 15 13 20 20 20 20 5 Class Distribution -------------------- 48% | Scavenger-Gunner 27% | Scavenger-Tank 6% | Tank 5% | Mutant 3% | Gunner Dominant Class ---------------- Mutant | -10/Materials Skirmisher | -9/Materials Scavenger-Tank | -8/Materials Scavenger-Tank | -8/Storage Scavenger-Tank | -8/Garrison Tank | -7/Factory Tank | -7/Garrison Scavenger-Gunner | -7/Factory Scavenger-Gunner | -7/Lower Caves Scavenger-Gunner | -7/Lower Caves Scavenger-Gunner | -7/Data Miner Scavenger-Gunner | -6/Proximity Caves Scavenger-Gunner | -6/Factory Derelict-Gunner | -6/Garrison Scavenger-Gunner | -5/Factory Scavenger-Gunner | -5/Upper Caves Scavenger-Gunner | -5/Upper Caves Scavenger-Gunner | -5/Zhirov Scavenger-Gunner | -4/Proximity Caves Scavenger-Gunner | -4/Factory Scavenger-Tank | -4/Extension Scavenger-Tank | -4/Cetus Scavenger-Tank | -4/Archives Scavenger-Tank | -4/Hub_04(d) Scavenger-Tank | -3/Research Resources | -11 -10 -9 -8 -8 -8 -7 -7 -7 -7 -7 -7 -6 -6 -6 -5 -5 -5 -5 -4 -4 -4 -4 -4 -4 -3 ----------- Run | Scr Mat Mat Mat Sto Gar Fac Gar Fac Low Low Dat Pro Fac Gar Fac Upp Upp Zhi Pro Fac Ext Cet Arc Hub Res Matter Collected 8213 | 204 146 328 204 139 424 10 566 132 25 106 . . 58 41 927 . 255 . 1247 594 777 151 5 318 1556 Remotely . | . . . . . . . . . . . . . . . . . . . . . . . . . . Salvage Created 13722 | . 273 989 339 219 708 55 1071 346 . 290 . . 69 83 908 . 352 . 2444 815 762 138 . 921 2940 Parts 661 | . 16 60 16 11 54 4 42 24 . 16 . . 3 7 49 . 17 . 81 47 31 2 . 40 141 Haulers Intercepted 6 | . 1 2 . . . . . . . . . . . . . . . . 1 . . . . 1 1 Recyclers Shooed 7 | . . 1 . 1 . . . 1 . . . . 1 . 1 . . . 1 1 . . . . . Parts Field Recycled . | . . . . . . . . . . . . . . . . . . . . . . . . . . Retrieved Matter . | . . . . . . . . . . . . . . . . . . . . . . . . . . Parts Self-Destructed 81 | . . . . . . . . . . 14 . . . . . . 17 . 50 . . . . . . Prevented 22 | . . . . . . . . . . 1 . . . . . . . . 21 . . . . . . Kills | -11 -10 -9 -8 -8 -8 -7 -7 -7 -7 -7 -7 -6 -6 -6 -5 -5 -5 -5 -4 -4 -4 -4 -4 -4 -3 ------- Run | Scr Mat Mat Mat Sto Gar Fac Gar Fac Low Low Dat Pro Fac Gar Fac Upp Upp Zhi Pro Fac Ext Cet Arc Hub Res Combat Hostiles Destroyed 232 | . 7 21 5 1 26 . 26 5 . 7 . . 1 3 18 . 9 . 29 11 13 2 . 6 42 Guns 171 | . 7 16 5 . 12 . 21 5 . 4 . . 1 . 18 . 9 . 12 11 6 2 . 4 38 Cannons 19 | . . . . 1 9 . 5 . . 1 . . . . . . . . . . 2 . . 1 . AOE 33 | . . 5 . . 4 . . . . . . . . 3 . . . . 11 . 5 . . 1 4 Classes Destroyed 18 | . 3 3 1 . . 1 2 2 . 1 . . . . 3 . . . 2 . . . . . . Worker 12 | . . . . . . 4 . 1 . . . . . . 1 . . . . . . . . 4 2 Builder 8 | . . 1 . . . . . . . . . . . . . . . . 1 1 1 . . 2 2 Tunneler 1 | . . . . . . . . 1 . . . . . . . . . . . . . . . . . Hauler 6 | . 1 2 . . . . . . . . . . . . . . . . 1 . . . . 1 1 Recycler 10 | . . 2 1 2 . . . 1 . . . . . . . . . . 1 . 1 . . 2 . Operator 3 | . . . . . . . . 1 . . . . . . 1 . . . . 1 . . . . . Watcher 4 | . . . . . . . . . . . . . . . . . . . 2 2 . . . . . Swarmer 59 | . 3 4 . . 14 . 8 . . 3 . . . 3 8 . 5 . . . 5 . . 1 5 Saboteur 2 | . . . . . . . . . . . . . . . . . . . 1 . . . . . 1 Grunt 99 | . 4 13 2 . 8 . 11 4 . 3 . . . 1 . . 4 . 14 3 5 . . 1 26 Brawler 6 | . . . . . . . 2 . . . . . . . . . . . 4 . . . . . . Duelist 4 | . . . . . . . 3 . . . . . . . . . . . 1 . . . . . . Sentry 24 | . . 4 2 1 3 . 1 1 . . . . 1 . 2 . . . 5 . 2 . . . 2 Specialist 3 | . . . . . . . . . . . . . . . 2 . . . . 1 . . . . . Hunter 19 | . . . 1 . 1 . 1 . . . . . . . 3 . . . 4 2 1 . . 2 4 Programmer 9 | . . . . . . . . . . . . . . . 2 . . . . 4 . . . . 3 Heavy 4 | . . . . . . . . . . . . . . . 1 . . . . 1 . . . 2 . Behemoth 3 | . . . . . . . . . . 1 . . . . . . . . 1 . . . . . 1 Cetus Guard 2 | . . . . . . . . . . . . . . . . . . . . . . 2 . . . Savage 1 | . . . . . . . . . . . . . . . . . . . . . . . . 1 . Guerrilla 1 | . . . . . . . . . . . . . . . . . . . . . . . . 1 . Best Kill Streak 11 | . 3 6 2 2 7 4 5 3 . 3 . . 1 3 5 . 5 . 7 3 6 1 . 10 11 Combat Bots Only 10 | . 3 4 2 1 7 . 5 2 . 3 . . 1 3 4 . 5 . 7 2 5 1 . 3 10 Max Kills in Single Turn 5 | . 1 3 1 1 3 1 1 1 . 2 . . 1 3 2 . 2 . 3 1 5 1 . 3 3 Gunslinging 1 | . . 1 . . . . . . . 1 . . . . 1 . 1 . . . . . . . 1 Exploded 5 | . . 2 . . 2 . . . . . . . . 3 . . . . 3 . 5 . . 1 1 Melee . | . . . . . . . . . . . . . . . . . . . . . . . . . . Uniques/NPCs Destroyed . | . . . . . . . . . . . . . . . . . . . . . . . . . . Combat | -11 -10 -9 -8 -8 -8 -7 -7 -7 -7 -7 -7 -6 -6 -6 -5 -5 -5 -5 -4 -4 -4 -4 -4 -4 -3 -------- Run | Scr Mat Mat Mat Sto Gar Fac Gar Fac Low Low Dat Pro Fac Gar Fac Upp Upp Zhi Pro Fac Ext Cet Arc Hub Res Damage Taken 24887 | . 294 824 525 111 823 . 1839 244 . 661 . . 275 139 2068 . 499 . 3230 2932 2266 253 67 828 7009 Core 2878 | . 80 271 31 18 69 . 197 . . 109 . . 11 46 210 . . . 204 162 120 . 13 76 1261 Absorbed by Shields 3093 | . . . . . 24 . . . . . . . . . . . . . . . 441 268 70 470 1820 Reduced by Siege Mode 139 | . . . . . . . . . . . . . . . 4 . 10 . 33 . 45 . . . 47 Redirected to Shielding 266 | . . . . . . . . . . . . . . . . . . . . . 170 10 . 6 80 Regen/Repaired (Parts) 143 | . . . . . . . . . . . . . . . . . . . . . 143 . . . . Core Remaining (%) 69 | 100 68 32 . . 78 . . . . . . 56 . 93 . . . . 58 . . . . 67 . Volleys Fired 578 | . 25 52 18 7 38 6 70 21 . 14 . . 8 14 42 . 13 . 69 44 33 6 2 23 73 Largest 4 | . 2 3 3 3 3 3 3 3 . 3 . . 3 3 4 . 4 . 4 4 4 4 4 4 4 Hottest 259 | . 40 110 96 110 110 160 161 161 . 241 . . 111 111 165 . 112 . 259 225 167 155 125 192 183 Shots Fired 1854 | . 50 150 54 21 114 18 199 58 . 42 . . 24 18 166 . 52 . 243 161 109 25 8 62 280 Gun 1609 | . 50 147 54 15 76 12 165 58 . 28 . . 24 6 163 . 52 . 167 161 90 23 8 40 270 Cannon 189 | . . . . 6 34 6 32 . . 5 . . . 4 3 . . . 65 . 17 2 . 10 5 Launcher 46 | . . 3 . . 4 . 2 . . . . . . 8 . . . . 11 . 1 . . 12 5 Special 10 | . . . . . . . . . . 9 . . . . . . . . . . 1 . . . . Kinetic 1313 | . 50 79 36 14 76 6 70 21 . 11 . . 16 4 136 . 52 . 167 127 105 25 8 40 270 Thermal 403 | . . 68 18 7 34 12 127 37 . 26 . . 8 2 27 . . . . 22 . . . 10 5 Explosive 46 | . . 3 . . 4 . 2 . . . . . . 8 . . . . 11 . 1 . . 12 5 Electromagnetic 91 | . . . . . . . . . . 5 . . . 4 3 . . . 65 12 2 . . . . Robot Hit Streak 34 | . 7 11 8 6 10 9 26 13 . 31 . . 8 . 15 . 34 . 11 13 21 9 5 4 34 Robot Miss Streak 7 | . 3 3 2 1 4 3 5 5 . 4 . . 2 . 4 . 5 . 4 7 4 3 1 5 5 Penetration Max 2 | . . . . . . . . . . . . . . . . . . . 1 1 1 1 . 1 2 Secondary Targets 34 | . 1 4 . . . . 5 1 . 1 . . . . 3 . 4 . 1 2 . . . . 12 Max Gunslinging Chain 1 | . 1 1 . . . . 1 1 . 1 . . . . 1 . 1 . 1 1 . . . . 1 Shots Hit Robots 1174 | . 30 96 32 6 56 9 143 40 . 34 . . 16 . 114 . 33 . 151 100 70 13 7 21 203 Core Hits 740 | . 17 55 12 3 39 9 133 29 . 18 . . 5 7 41 . 20 . 96 40 38 6 4 47 121 Critical Kills 36 | . 1 . . . 1 . . . . 1 . . . . 3 . . . 3 4 3 . . 1 19 Critical Parts Destroyed 39 | . . . . . . . 1 . . . . . . . 3 . 1 . 4 6 5 1 1 . 17 Critical Strikes 110 | . 1 6 3 . 1 . 4 2 . 2 . . 1 . 11 . 1 . 14 10 11 2 2 1 38 Burn 18 | . . 6 3 . . . 3 2 . 1 . . 1 . 2 . . . . . . . . . . Meltdown 1 | . . . . . 1 . . . . . . . . . . . . . . . . . . . . Destroy 81 | . 1 . . . . . 1 . . 1 . . . . 8 . 1 . 7 10 9 2 2 1 38 Blast 2 | . . . . . . . . . . . . . . . . . . . . . 2 . . . . Corrupt 8 | . . . . . . . . . . . . . . . 1 . . . 7 . . . . . . Melee Attacks . | . . . . . . . . . . . . . . . . . . . . . . . . . . Impact . | . . . . . . . . . . . . . . . . . . . . . . . . . . Slashing . | . . . . . . . . . . . . . . . . . . . . . . . . . . Piercing . | . . . . . . . . . . . . . . . . . . . . . . . . . . Sneak Attacks . | . . . . . . . . . . . . . . . . . . . . . . . . . . Combat Hostiles . | . . . . . . . . . . . . . . . . . . . . . . . . . . Follow-up Attacks . | . . . . . . . . . . . . . . . . . . . . . . . . . . Damage Inflicted 31701 | . 252 1401 425 120 1447 275 2939 768 . 577 . . 321 385 2217 . 694 . 5492 2720 1962 468 162 2447 6629 Guns 22307 | . 252 1142 417 50 532 194 2410 768 . 405 . . 321 . 2109 . 694 . 2398 2595 1287 432 162 636 5503 Cannons 3056 | . . . . 70 551 72 433 . . 88 . . . . 108 . . . 1182 . 331 36 . 39 146 Explosions 6161 | . . 259 . . 360 . 93 . . . . . . 385 . . . . 1912 117 341 . . 1772 922 Melee . | . . . . . . . . . . . . . . . . . . . . . . . . . . Ramming 93 | . . . 8 . 4 9 3 . . . . . . . . . . . . 8 3 . . . 58 Kinetic 18206 | . 252 533 241 50 532 51 659 206 . 122 . . 208 . 1806 . 694 . 2398 2097 1588 468 162 636 5503 Thermal 6083 | . . 609 176 70 551 215 2184 562 . 367 . . 113 . 303 . . . 320 428 . . . 39 146 Explosive 5132 | . . 259 . . 360 . 93 . . . . . . 385 . . . . 1592 . 341 . . 1180 922 Electromagnetic 2187 | . . . . . . . . . . 88 . . . . 108 . . . 1182 187 30 . . 592 . Impact . | . . . . . . . . . . . . . . . . . . . . . . . . . . Slashing . | . . . . . . . . . . . . . . . . . . . . . . . . . . Piercing . | . . . . . . . . . . . . . . . . . . . . . . . . . . Highest Corruption 35 | . . . . . . . . . . . . . . . 1 1 1 1 35 4 4 4 4 17 10 Average Corruption 4 | . . . . . . . . . . . . . . . 1 1 1 1 8 2 4 4 4 4 5 Corruption Purged . | . . . . . . . . . . . . . . . . . . . . . . . . . . Corruption Blocked 5 | . . . . . . . . . . . . . . . 5 . . . . . . . . . . Effects 122 | . . . . . . . . . . . . . . . . 1 4 2 39 8 36 12 2 7 11 Message Errors 23 | . . . . . . . . . . . . . . . . 1 1 1 5 1 8 2 . 2 2 Matter Fused 33 | . . . . . . . . . . . . . . . . . 2 . 13 2 6 4 1 3 2 Heat Flow Errors 15 | . . . . . . . . . . . . . . . . . . . 6 . 5 2 . . 2 Energy Discharges 13 | . . . . . . . . . . . . . . . . . . 1 1 1 6 2 1 1 . Parts Rejected 1 | . . . . . . . . . . . . . . . . . . . . . . . . . 1 Data Loss (minor) 18 | . . . . . . . . . . . . . . . . . 1 . 5 2 6 . . 1 3 Data Loss (major) 3 | . . . . . . . . . . . . . . . . . . . 1 . 2 . . . . Misfires 6 | . . . . . . . . . . . . . . . . . . . . 2 3 1 . . . Alerts 2 | . . . . . . . . . . . . . . . . . . . 1 . . 1 . . . Misdirections 1 | . . . . . . . . . . . . . . . . . . . . . . . . . 1 Weapon Failures 7 | . . . . . . . . . . . . . . . . . . . 7 . . . . . . Overload Shots . | . . . . . . . . . . . . . . . . . . . . . . . . . . Overflow Damage 96 | . . 10 . 11 16 . . . . . . . . 14 7 . . . 5 . 20 . . . 13 Projectiles 49 | . . . . 11 11 . . . . . . . . . 7 . . . 5 . 15 . . . . Explosions 47 | . . 10 . . 5 . . . . . . . . 14 . . . . . . 5 . . . 13 Melee . | . . . . . . . . . . . . . . . . . . . . . . . . . . Knockbacks 1 | . . . . . . . . . . . . . . . . . . . . . 1 . . . . Impact . | . . . . . . . . . . . . . . . . . . . . . . . . . . Kinetic 1 | . . . . . . . . . . . . . . . . . . . . . 1 . . . . Secondary . | . . . . . . . . . . . . . . . . . . . . . . . . . . Self-Inflicted Damage 459 | . . 38 . . 76 . . . . . . . . 140 . . . . 86 . . . . 119 . Shots 15 | . . 1 . . 4 . . . . . . . . 3 . . . . 5 . . . . 2 . Rammed 10 | . . . . . . 1 2 . . . . . . . . . . . . . 2 . . . 5 Targets Rammed 15 | . . . 1 . 2 1 2 . . . . . . . . . . . . 2 2 . . . 5 Kicked 5 | . . . 1 . 2 . . . . . . . . . . . . . . 2 . . . . . Crushed . | . . . . . . . . . . . . . . . . . . . . . . . . . . Highest Temperature 500 | . 18 343 500 120 275 264 428 120 . 54 . . 9 . 193 . 5 . 221 489 255 215 8 115 201 Average Temperature 104 | . 9 111 238 35 115 106 177 46 . 22 . . 3 . 81 . 5 . 58 129 55 81 5 24 24 Received Heat Transfer 3893 | . 111 324 72 18 210 . 492 54 . 168 . . 96 . 90 . 108 . 495 357 328 32 12 32 894 Effects 16 | . . 1 1 . . 1 9 . . . . . . . . . . . . 4 . . . . . Shutdowns 4 | . . . . . . . 1 . . . . . . . . . . . . 3 . . . . . Energy Bleed 3 | . . . . . . 1 2 . . . . . . . . . . . . . . . . . . Interference 3 | . . . . . . . 3 . . . . . . . . . . . . . . . . . . Matter Decay 1 | . . . . . . . 1 . . . . . . . . . . . . . . . . . . Short Circuit 3 | . . 1 . . . . 1 . . . . . . . . . . . . 1 . . . . . Damage (minor) 1 | . . . . . . . 1 . . . . . . . . . . . . . . . . . . Damage (major) 1 | . . . 1 . . . . . . . . . . . . . . . . . . . . . . Siege Activations 13 | . . . . . . . . . . . . . . . 2 . 1 . 3 . 1 . . . 6 Total Turns 205 | . . . . . . . . . . . . . . . 32 . 14 . 34 . 19 . . . 106 Longest Duration 32 | . . . . . . . . . . . . . . . 22 . 14 . 17 . 19 . . . 32 Robots Corrupted 7 | . . . . . . . . . . . . . . . . . . . 7 . . . . . . Combat Hostiles 6 | . . . . . . . . . . . . . . . . . . . 6 . . . . . . Parts Fried 13 | . . . . . . . . . . . . . . . 1 . . . 10 . . . . 2 . Impact Corruptions . | . . . . . . . . . . . . . . . . . . . . . . . . . . Robots Melted 3 | . . . . . 1 . . . . 2 . . . . . . . . . . . . . . . Combat Hostiles 3 | . . . . . 1 . . . . 2 . . . . . . . . . . . . . . . Parts Melted 25 | . . 4 2 1 1 . 4 . . 3 . . 1 . 1 . . . . 5 3 . . . . Heat Transferred 10815 | . . 2126 740 111 831 231 2780 985 . 1355 . . 296 . 740 . . . 150 470 . . . . . Parts Sabotaged 2 | . . . . . . . . . . . . . . . . . . . . . . . . . 2 Parts Stolen . | . . . . . . . . . . . . . . . . . . . . . . . . . . Parts Stripped . | . . . . . . . . . . . . . . . . . . . . . . . . . . Power Chain Reactions 1 | . . . . . . . . . . . . . . . . . . . 1 . . . . . . Missiles Intercepted . | . . . . . . . . . . . . . . . . . . . . . . . . . . Alert | -11 -10 -9 -8 -8 -8 -7 -7 -7 -7 -7 -7 -6 -6 -6 -5 -5 -5 -5 -4 -4 -4 -4 -4 -4 -3 ------- Run | Scr Mat Mat Mat Sto Gar Fac Gar Fac Low Low Dat Pro Fac Gar Fac Upp Upp Zhi Pro Fac Ext Cet Arc Hub Res Peak Influence 1991 | . 232 447 398 267 1075 590 1226 875 . . . . 50 253 460 . . . . 436 454 928 461 1684 1991 Initial 883 | . . 13 188 167 169 564 413 643 . . . . . 35 132 . . . . 11 100 253 291 161 883 Average 521 | . 142 293 284 205 601 580 972 764 . . . . 18 174 271 . . . . 213 276 569 423 780 1481 Maximum Alert Level 5 | . 1 2 1 1 3 2 4 3 . . . . . 1 2 . . . . 2 2 3 2 5 5 Low Security (%) 20 | 100 78 20 21 52 11 . . . . . . . 100 52 7 . . . . 36 32 . . 3 . Level 1 36 | . 21 48 78 47 14 . . . . . . . . 47 92 . . . . 60 50 43 28 14 . Level 2 13 | . . 30 . . 36 100 11 14 . . . . . . . . . . . 3 17 8 71 14 . Level 3 16 | . . . . . 36 . 58 85 . . . . . . . . . . . . . 48 . 52 8 Level 4 8 | . . . . . . . 30 . . . . . . . . . . . . . . . . 9 58 Level 5 . | . . . . . . . . . . . . . . . . . . . . . . . . 5 . High Security 3 | . . . . . . . . . . . . . . . . . . . . . . . . . 33 Max Security . | . . . . . . . . . . . . . . . . . . . . . . . . . . Squads Dispatched 54 | . 3 1 1 . . . . 3 . . . . 3 . 5 . . . . 8 . . . 4 26 Investigation 7 | . 1 . . . . . . . . . . . 2 . 1 . . . . . . . . 1 2 Extermination 5 | . . . . . . . . . . . . . . . 1 . . . . 3 . . . . 1 Reinforcement 22 | . 2 1 1 . . . . 3 . . . . . . 3 . . . . 5 . . . 3 4 Assault 16 | . . . . . . . . . . . . . . . . . . . . . . . . . 16 Garrison 4 | . . . . . . . . . . . . . 1 . . . . . . . . . . . 3 Intercept . | . . . . . . . . . . . . . . . . . . . . . . . . . . Searches Triggered . | . . . . . . . . . . . . . . . . . . . . . . . . . . Data Miner Redirects 4 | . . . . . . . . . . . . . 2 . . . . . . . . . . 1 1 Construction Impeded 2 | . . . . . . . . . . . . . . . . . . . . 1 . . . 1 . Haulers Reinforced 1 | . . . . . . . . . . . . . . . . . . . . . . . . . 1 Active Scanning Responses . | . . . . . . . . . . . . . . . . . . . . . . . . . . Cargo Convoy Interrupts 1 | . . . . . . . . . . . . . . . 1 . . . . . . . . . . Stealth | -11 -10 -9 -8 -8 -8 -7 -7 -7 -7 -7 -7 -6 -6 -6 -5 -5 -5 -5 -4 -4 -4 -4 -4 -4 -3 --------- Run | Scr Mat Mat Mat Sto Gar Fac Gar Fac Low Low Dat Pro Fac Gar Fac Upp Upp Zhi Pro Fac Ext Cet Arc Hub Res Distress Signals 16 | . 1 2 1 1 . . . . . . . . . . . . . . 1 1 . 2 . 2 5 Communications Jammed . | . . . . . . . . . . . . . . . . . . . . . . . . . . Distress Signals . | . . . . . . . . . . . . . . . . . . . . . . . . . . Times Spotted 392 | . 10 24 9 6 28 1 33 12 . 8 . . 1 . 25 . 10 . 37 27 19 14 3 29 96 Peak Tracking Total 23 | . 3 5 5 5 7 1 8 3 . 4 . . 1 . 5 . 5 . 5 6 4 5 2 8 23 Tactical Retreats 15 | . . . 1 . 1 . 3 . . . . . . . 1 . 1 . 4 . . 1 . . 3 Traps | -11 -10 -9 -8 -8 -8 -7 -7 -7 -7 -7 -7 -6 -6 -6 -5 -5 -5 -5 -4 -4 -4 -4 -4 -4 -3 ------- Run | Scr Mat Mat Mat Sto Gar Fac Gar Fac Low Low Dat Pro Fac Gar Fac Upp Upp Zhi Pro Fac Ext Cet Arc Hub Res Traps Triggered 13 | . . . . 2 3 . . . . . . . . 3 1 . . . . 1 1 . . . 2 Indirectly . | . . . . . . . . . . . . . . . . . . . . . . . . . . Trap Hack Attempts . | . . . . . . . . . . . . . . . . . . . . . . . . . . Triggered . | . . . . . . . . . . . . . . . . . . . . . . . . . . Disarmed . | . . . . . . . . . . . . . . . . . . . . . . . . . . Reprogrammed . | . . . . . . . . . . . . . . . . . . . . . . . . . . Reused . | . . . . . . . . . . . . . . . . . . . . . . . . . . Traps Extracted . | . . . . . . . . . . . . . . . . . . . . . . . . . . Installed . | . . . . . . . . . . . . . . . . . . . . . . . . . . Triggered 1 | . . . . . . . . . . . . . . . 1 . . . . . . . . . . Machines | -11 -10 -9 -8 -8 -8 -7 -7 -7 -7 -7 -7 -6 -6 -6 -5 -5 -5 -5 -4 -4 -4 -4 -4 -4 -3 ---------- Run | Scr Mat Mat Mat Sto Gar Fac Gar Fac Low Low Dat Pro Fac Gar Fac Upp Upp Zhi Pro Fac Ext Cet Arc Hub Res Machines Disabled 38 | . . . . 2 2 . 2 . . . . . . 3 2 . 1 . 2 7 1 1 . 14 1 Max in Single Turn 10 | . . . . 1 1 . 1 . . . . . . 1 1 . 1 . 1 5 1 . . 10 1 Garrison Access 2 | . . . . . . . . . . . . . . . 1 . . . . 1 . . . . . Garrison Relay 5 | . . . . . 2 . 2 . . . . . . 1 . . . . . . . . . . . Phase Generator 1 | . . . . . . . . . . . . . . 1 . . . . . . . . . . . Network Hub 1 | . . . . . . . . . . . . . . . . . . . . . . . . 1 . Machines Sabotaged . | . . . . . . . . . . . . . . . . . . . . . . . . . . Garrisons Compromised 1 | . . . . . . . . . . . . . . . 1 . . . . . . . . . . Overloaded Fab Kills . | . . . . . . . . . . . . . . . . . . . . . . . . . . Hacking | -11 -10 -9 -8 -8 -8 -7 -7 -7 -7 -7 -7 -6 -6 -6 -5 -5 -5 -5 -4 -4 -4 -4 -4 -4 -3 --------- Run | Scr Mat Mat Mat Sto Gar Fac Gar Fac Low Low Dat Pro Fac Gar Fac Upp Upp Zhi Pro Fac Ext Cet Arc Hub Res Machines Accessed 41 | . 3 2 . 1 . 3 . 1 . . 4 . 2 . 5 1 . 6 1 3 4 2 . 2 1 Terminals 22 | . 3 2 . . . 1 . 1 . . . . 1 . 3 . . . 1 2 3 2 . 2 1 Fabricators 2 | . . . . . . 1 . . . . . . . . 1 . . . . . . . . . . Repair Stations 1 | . . . . . . . . . . . . . . . . . . . . . 1 . . . . Recycling Units . | . . . . . . . . . . . . . . . . . . . . . . . . . . Scanalyzers . | . . . . . . . . . . . . . . . . . . . . . . . . . . Garrison Access 5 | . . . . 1 . 1 . . . . . . 1 . 1 . . . . 1 . . . . . Total Hacks 132 | . 7 5 . 1 . 6 . 3 . . 30 . 5 . 15 1 . 19 2 7 15 5 . 7 4 Successful 85 | . . 3 . 1 . 3 . 1 . . 30 . 3 . 5 1 . 19 1 4 6 1 . 5 2 Failed 47 | . 7 2 . . . 3 . 2 . . . . 2 . 10 . . . 1 3 9 4 . 2 2 Catastrophic 7 | . 2 . . . . 1 . 1 . . . . . . 2 . . . . . . 1 . . . Database Lockouts . | . . . . . . . . . . . . . . . . . . . . . . . . . . Manual 45 | . 5 . . . . 1 . 3 . . . . 4 . 9 . 1 . . 3 9 1 . 7 2 Terminals 65 | . 7 5 . . . 3 . 3 . . . . 2 . 11 . . . 2 4 12 5 . 7 4 Fabricators 2 | . . . . . . 1 . . . . . . . . 1 . . . . . . . . . . Repair Stations 3 | . . . . . . . . . . . . . . . . . . . . . 3 . . . . Recycling Units . | . . . . . . . . . . . . . . . . . . . . . . . . . . Scanalyzers . | . . . . . . . . . . . . . . . . . . . . . . . . . . Garrison Access 12 | . . . . 1 . 2 . . . . . . 3 . 3 . . . . 3 . . . . . Terminal Hacks 69 | . . 3 . . . 2 . 1 . . 30 . . . 3 1 . 19 1 3 2 1 . 2 1 Record 19 | . . . . . . . . . . . 11 . . . . . . 7 . . . 1 . . . Part Schematic 15 | . . . . . . . . . . . 11 . . . . . . 4 . . . . . . . Robot Schematic 5 | . . . . . . . . . . . 5 . . . . . . . . . . . . . . Robot Analysis 4 | . . . . . . . . . . . . . . . . . . 4 . . . . . . . Prototype ID Bank 11 | . . 1 . . . 1 . . . . 3 . . . . . . 4 . 1 1 . . . . Open Door 2 | . . . . . . . . . . . . . . . . 1 . . 1 . . . . . . Level Access Points 1 | . . . . . . . . . . . . . . . 1 . . . . . . . . . . Branch Access Points 3 | . . . . . . . . 1 . . . . . . 1 . . . . . 1 . . . . Emergency Access Points 1 | . . . . . . 1 . . . . . . . . . . . . . . . . . . . Unreport Threat 2 | . . . . . . . . . . . . . . . . . . . . 2 . . . . . Recall Investigation 1 | . . . . . . . . . . . . . . . 1 . . . . . . . . . . Zone Layout 5 | . . 2 . . . . . . . . . . . . . . . . . . . . . 2 1 Fabricator Hacks . | . . . . . . . . . . . . . . . . . . . . . . . . . . Repair Station Hacks 2 | . . . . . . . . . . . . . . . . . . . . . 2 . . . . Scan Component 1 | . . . . . . . . . . . . . . . . . . . . . 1 . . . . Repair 1 | . . . . . . . . . . . . . . . . . . . . . 1 . . . . Recycling Unit Hacks . | . . . . . . . . . . . . . . . . . . . . . . . . . . Scanalyzer . | . . . . . . . . . . . . . . . . . . . . . . . . . . Garrison Access Hacks 6 | . . . . 1 . 1 . . . . . . 1 . 2 . . . . 1 . . . . . Unlock Access 4 | . . . . 1 . 1 . . . . . . 1 . 1 . . . . . . . . . . Seal Access 2 | . . . . . . . . . . . . . . . 1 . . . . 1 . . . . . Unauthorized Hacks 8 | . . . . . . . . . . . . . 2 . . . . . . . 2 . . 3 1 Terminals 7 | . . . . . . . . . . . . . 1 . . . . . . . 2 . . 3 1 Track 3 | . . . . . . . . . . . . . . . . . . . . . 1 . . 2 . Botnet 2 | . . . . . . . . . . . . . . . . . . . . . 1 . . 1 . Disrupt 2 | . . . . . . . . . . . . . 1 . . . . . . . . . . . 1 Fabricators . | . . . . . . . . . . . . . . . . . . . . . . . . . . Repair Stations . | . . . . . . . . . . . . . . . . . . . . . . . . . . Recycling Units . | . . . . . . . . . . . . . . . . . . . . . . . . . . Scanalyzers . | . . . . . . . . . . . . . . . . . . . . . . . . . . Garrison Access 1 | . . . . . . . . . . . . . 1 . . . . . . . . . . . . Reprogram 1 | . . . . . . . . . . . . . 1 . . . . . . . . . . . . Data Cores Recovered 2 | . . . . . . . . . . . . . . . 1 . . . . 1 . . . . . Used 1 | . . . . . . . . . . . . . . . 1 . . . . . . . . . . Hacking Detections 27 | . 3 2 . . . 3 . 1 . . . . 1 . 5 . . . . 3 4 2 . 2 1 Full Trace Events 4 | . 1 . . . . . . . . . . . 1 . 1 . . . . . . . . 1 . Feedback Events . | . . . . . . . . . . . . . . . . . . . . . . . . . . Feedback Blocked . | . . . . . . . . . . . . . . . . . . . . . . . . . . Robot Schematics Acquired 5 | . . . . . . . . . . . 5 . . . . . . . . . . . . . . Robots Built . | . . . . . . . . . . . . . . . . . . . . . . . . . . Authchips . | . . . . . . . . . . . . . . . . . . . . . . . . . . Time . | . . . . . . . . . . . . . . . . . . . . . . . . . . Total Robot Build Rating . | . . . . . . . . . . . . . . . . . . . . . . . . . . Part Schematics Acquired 15 | . . . . . . . . . . . 11 . . . . . . 4 . . . . . . . Parts Built . | . . . . . . . . . . . . . . . . . . . . . . . . . . Authchips . | . . . . . . . . . . . . . . . . . . . . . . . . . . Time . | . . . . . . . . . . . . . . . . . . . . . . . . . . Total Part Build Rating . | . . . . . . . . . . . . . . . . . . . . . . . . . . Parts Repaired 1 | . . . . . . . . . . . . . . . . . . . . . 1 . . . . Time 25 | . . . . . . . . . . . . . . . . . . . . . 25 . . . . Parts Recycled . | . . . . . . . . . . . . . . . . . . . . . . . . . . Recycled Matter . | . . . . . . . . . . . . . . . . . . . . . . . . . . Retrieved Matter . | . . . . . . . . . . . . . . . . . . . . . . . . . . Retrieved Components . | . . . . . . . . . . . . . . . . . . . . . . . . . . Parts Scanalyzed . | . . . . . . . . . . . . . . . . . . . . . . . . . . Part Schematics Acquired . | . . . . . . . . . . . . . . . . . . . . . . . . . . Parts Damaged . | . . . . . . . . . . . . . . . . . . . . . . . . . . Bothacking | -11 -10 -9 -8 -8 -8 -7 -7 -7 -7 -7 -7 -6 -6 -6 -5 -5 -5 -5 -4 -4 -4 -4 -4 -4 -3 ------------ Run | Scr Mat Mat Mat Sto Gar Fac Gar Fac Low Low Dat Pro Fac Gar Fac Upp Upp Zhi Pro Fac Ext Cet Arc Hub Res Used RIF Installer 3 | . . . . . 1 . 1 . . . . . . 1 . . . . . . . . . . . Hotswap 1 | . . . . . . . . . . . . . . 1 . . . . . . . . . . . Program Shield 1 | . . . . . . . 1 . . . . . . . . . . . . . . . . . . Robots Hacked . | . . . . . . . . . . . . . . . . . . . . . . . . . . Non-combat . | . . . . . . . . . . . . . . . . . . . . . . . . . . Combat . | . . . . . . . . . . . . . . . . . . . . . . . . . . Robot Hacks Applied . | . . . . . . . . . . . . . . . . . . . . . . . . . . Relay Couplers Released 19 | . . . . . 8 . 6 . . . . . . 5 . . . . . . . . . . . Machine Destruction 19 | . . . . . 8 . 6 . . . . . . 5 . . . . . . . . . . . Fabnet Peak Effective % . | . . . . . . . . . . . . . . . . . . . . . . . . . . Robots Rewired 27 | . . . . . . 2 . . . . . . . . . . . . 12 . 13 . . . . Allies Hacked . | . . . . . . . . . . . . . . . . . . . . . . . . . . Hacks Repelled . | . . . . . . . . . . . . . . . . . . . . . . . . . . Allies | -11 -10 -9 -8 -8 -8 -7 -7 -7 -7 -7 -7 -6 -6 -6 -5 -5 -5 -5 -4 -4 -4 -4 -4 -4 -3 -------- Run | Scr Mat Mat Mat Sto Gar Fac Gar Fac Low Low Dat Pro Fac Gar Fac Upp Upp Zhi Pro Fac Ext Cet Arc Hub Res Total Allies 44 | . . . . . . 2 . . . . . . 2 . . . . . 12 . 23 5 . . . Largest Group 16 | . . . . . . 2 2 . . . . . 2 2 1 . . . 6 6 16 16 14 12 1 Highest-Rated Group 1027 | . . . . . . 52 52 . . . . . 58 58 29 . . . 296 296 783 1027 958 760 82 Highest-Rated Ally 159 | . . . . . . 32 32 . . . . . 29 29 29 . . . 50 50 159 159 153 96 82 Total Orders . | . . . . . . . . . . . . . . . . . . . . . . . . . . Ally Attacks 455 | . . . . . . . 17 . . . . . . . 2 . . . 9 85 109 93 28 95 17 Total Damage 14315 | . . . . . . . 432 . . . . . . . 18 . . . 157 2989 2922 2877 893 3251 776 Kills 87 | . . . . . . . 6 . . . . . . . 1 . . . 2 17 13 19 4 20 5 Allies Corrupted . | . . . . . . . . . . . . . . . . . . . . . . . . . . Allies Melted . | . . . . . . . . . . . . . . . . . . . . . . . . . . Intel | -11 -10 -9 -8 -8 -8 -7 -7 -7 -7 -7 -7 -6 -6 -6 -5 -5 -5 -5 -4 -4 -4 -4 -4 -4 -3 ------- Run | Scr Mat Mat Mat Sto Gar Fac Gar Fac Low Low Dat Pro Fac Gar Fac Upp Upp Zhi Pro Fac Ext Cet Arc Hub Res Robot Analysis Total 4 | . . . . . . . . . . . . . . . . . . 4 . . . . . . . Derelict Logs Recovered 6 | . . . . . . . . . 2 1 . 2 . . . . . . 1 . . . . . . Drone Launches . | . . . . . . . . . . . . . . . . . . . . . . . . . . Drone Recoveries . | . . . . . . . . . . . . . . . . . . . . . . . . . . Exploration | -11 -10 -9 -8 -8 -8 -7 -7 -7 -7 -7 -7 -6 -6 -6 -5 -5 -5 -5 -4 -4 -4 -4 -4 -4 -3 ------------- Run | Scr Mat Mat Mat Sto Gar Fac Gar Fac Low Low Dat Pro Fac Gar Fac Upp Upp Zhi Pro Fac Ext Cet Arc Hub Res Turns Passed 15600 | 70 413 633 394 220 1019 278 1009 348 681 621 107 218 214 266 1185 296 786 396 1629 1315 1470 527 91 357 1057 Spaces Moved 7408 | 52 183 263 157 90 407 150 479 145 351 314 83 168 131 124 568 176 358 223 584 613 646 299 40 171 633 Core 281 | 6 . . . . . . . . . . . . . . . . . . 5 . . . . . 270 Treads 3705 | . . . . . 185 150 372 . . . . . . . 466 176 358 223 476 . 486 299 40 171 303 Legs 3362 | 46 183 263 157 90 222 . 107 145 351 314 83 168 131 124 102 . . . 103 613 160 . . . . Wheels 60 | . . . . . . . . . . . . . . . . . . . . . . . . . 60 Hover . | . . . . . . . . . . . . . . . . . . . . . . . . . . Flight . | . . . . . . . . . . . . . . . . . . . . . . . . . . Fastest Speed 50 | 50 120 120 190 190 160 145 145 190 190 130 130 130 130 130 130 166 166 166 120 120 160 160 160 160 50 Average Speed 168 | 111 183 150 193 190 215 150 157 190 191 175 130 130 130 171 168 166 166 166 201 184 176 160 160 160 102 Slowest Speed 1450 | 120 190 190 260 260 470 160 400 190 193 195 130 130 130 200 200 166 166 166 1450 190 245 160 160 160 225 Overloaded Moves . | . . . . . . . . . . . . . . . . . . . . . . . . . . Propulsion Burnouts . | . . . . . . . . . . . . . . . . . . . . . . . . . . Robots Hopped . | . . . . . . . . . . . . . . . . . . . . . . . . . . Cave-ins Triggered . | . . . . . . . . . . . . . . . . . . . . . . . . . . Teleports 1 | . . . . . . . . . . . . . . . . . . . . . . . . . 1 Exploration Rate (%) 39 | 4 38 26 12 24 80 5 63 6 58 41 69 42 2 31 19 35 52 62 58 15 76 72 76 28 25 Regions Visited 25 Branch Regions 13 Pre-discovered Areas 5 | . . . . . . . . . 1 . 1 . . . . . . 3 . . . . . . . Known Exits Taken 8 | . . . . 1 . 1 . 1 . . . . 1 . 1 . . . 1 1 1 . . . . Unknown Exits Taken 14 | 1 1 1 1 . . . . . 1 1 1 1 . . . 1 1 1 . . . 1 1 1 . Scrap Searched 10 | . . . . . . . . . 2 5 . . . . . . 2 . 1 . . . . . . Spaces Dug 37 | . . 8 . . . . . . . . . . . 28 . . . . . . . . . 1 . Terrain Destroyed 750 | . . 24 . . 3 . 32 . . 1 . . . 134 1 . 1 . 131 64 35 1 . 282 41 Melee . | . . . . . . . . . . . . . . . . . . . . . . . . . . Projectile 72 | . . . . . . . 1 . . 1 . . . . 1 . 1 . 11 22 18 1 . 10 6 AOE 676 | . . 24 . . 3 . 31 . . . . . . 134 . . . . 120 41 17 . . 272 34 Terrain Rammed . | . . . . . . . . . . . . . . . . . . . . . . . . . . Walls Destroyed . | . . . . . . . . . . . . . . . . . . . . . . . . . . Machines Disabled . | . . . . . . . . . . . . . . . . . . . . . . . . . . Actions | -11 -10 -9 -8 -8 -8 -7 -7 -7 -7 -7 -7 -6 -6 -6 -5 -5 -5 -5 -4 -4 -4 -4 -4 -4 -3 --------- Run | Scr Mat Mat Mat Sto Gar Fac Gar Fac Low Low Dat Pro Fac Gar Fac Upp Upp Zhi Pro Fac Ext Cet Arc Hub Res Total 9303 | 61 219 396 208 125 489 192 607 181 362 345 82 167 157 158 697 179 518 250 865 688 901 335 62 205 854 Wait 558 | 2 4 42 7 4 15 . 31 3 . 7 . . 15 1 20 . 145 . 79 2 63 18 21 3 76 Move 7385 | 51 182 262 156 90 406 150 478 144 350 313 82 167 130 123 567 175 357 222 583 612 645 298 39 170 633 Hop . | . . . . . . . . . . . . . . . . . . . . . . . . . . Pick Up 107 | 2 2 12 6 4 1 5 4 3 2 3 . . 1 . 16 . 1 5 7 3 14 4 . 1 11 Fast Attach 113 | 6 2 5 3 5 5 4 7 2 2 1 . . . . 12 1 . 7 13 8 14 2 . . 14 Attach 65 | . . 6 2 2 . . 3 1 . 3 . . 3 2 6 . 1 2 4 4 7 . . 1 18 Detach 37 | . 1 4 . 2 2 2 1 1 . 1 . . . . 4 1 . 1 1 2 10 . . . 4 Swap 79 | . 2 7 5 4 2 5 5 2 2 1 . . . 3 8 2 . 2 8 5 3 . . 5 8 Drop 132 | . 1 6 10 7 3 9 6 4 6 2 . . . . 22 . 1 11 5 6 12 7 . 2 12 Fire 578 | . 25 52 18 7 38 6 70 21 . 14 . . 8 14 42 . 13 . 69 44 33 6 2 23 73 Melee . | . . . . . . . . . . . . . . . . . . . . . . . . . . Ram . | . . . . . . . . . . . . . . . . . . . . . . . . . . Kick 5 | . . . 1 . 2 . . . . . . . . . . . . . . 2 . . . . . Crush 10 | . . . . . . 1 2 . . . . . . . . . . . . . 2 . . . 5 Escape Stasis 35 | . . . . . 15 . . . . . . . . 15 . . . . . . 5 . . . . Rewire 199 | . . . . . . 10 . . . . . . . . . . . . 96 . 93 . . . . Trap . | . . . . . . . . . . . . . . . . . . . . . . . . . . Miscellaneous . | . . . . . . . . . . . . . . . . . . . . . . . . . . Route ------- -11/Scrapyard -10/Materials -9/Materials -8/Materials -8/Storage -8/Garrison (discovered 3 exits: *Fac x3) -7/Factory -7/Garrison (discovered 3 exits: *Fac x3) -7/Factory (discovered 3 exits: *Fac / *Low x2) -7/Lower Caves -7/Lower Caves -7/Data Miner -6/Proximity Caves -6/Factory (discovered 2 exits: *Low / Gar) -6/Garrison -5/Factory (discovered 6 exits: *Fac x4 / *Upp x2) -5/Upper Caves -5/Upper Caves -5/Zhirov -4/Proximity Caves -4/Factory (discovered 2 exits: *Res / *Ext) -4/Extension (discovered 2 exits: *Res / *Cet) -4/Cetus (discovered 2 exits: *Res / [*Arc]) -4/Archives (discovered 2 exits: *Hub x2) -4/Hub_04(d) (discovered 2 exits: *Res x2) -3/Research (discovered 1 exit: Res) History --------- Turn | Location | Event 8 | -11/Scrapyard | Discovered new exit (range 15) 71 | -11/Scrapyard | Entered Materials 304 | -10/Materials | Build established: Mutant 375 | -10/Materials | Discovered new exit (range 8) 484 | -10/Materials | Entered another Materials area 484 | -9/Materials | Evolved 2 slots: Propulsion x1, Weapon x1 888 | -9/Materials | Core integrity fell below 50% 1102 | -9/Materials | Discovered new exit (range 3) 1117 | -9/Materials | Entered another Materials area 1117 | -8/Materials | Evolved 2 slots: Utility x2 1117 | -8/Materials | Discovered new exit (range 15) 1290 | -8/Materials | Build established: Scavenger-Tank 1511 | -8/Materials | Entered Storage 1731 | -8/Storage | Identified exit to Garrison 1731 | -8/Storage | Entered Garrison 1836 | -8/Garrison | Triggered checkpoint 2000 | -8/Garrison | Triggered checkpoint 2084 | -8/Garrison | Triggered checkpoint 2086 | -8/Garrison | Garrison Relay disabled 2174 | -8/Garrison | Discovered new exit (range 9) 2404 | -8/Garrison | Destroyed 7 combat bots 2422 | -8/Garrison | Triggered checkpoint 2492 | -8/Garrison | Triggered checkpoint 2517 | -8/Garrison | Garrison Relay disabled 2568 | -8/Garrison | Discovered new exit (range 13) 2644 | -8/Garrison | Triggered checkpoint 2681 | -8/Garrison | Triggered checkpoint 2721 | -8/Garrison | Discovered new exit (range 10) 2743 | -8/Garrison | Installed Relay Interface Framework 2750 | -8/Garrison | Entered Factory 2750 | -7/Factory | Evolved 2 slots: Utility x2 3028 | -7/Factory | Identified exit to Garrison 3028 | -7/Factory | Entered Garrison 3028 | -7/Garrison | Accompanied by 2 allies 3058 | -7/Garrison | Triggered checkpoint 3073 | -7/Garrison | Garrison Relay disabled 3157 | -7/Garrison | Build established: Tank 3220 | -7/Garrison | Triggered checkpoint 3370 | -7/Garrison | Discovered new exit (range 13) 3448 | -7/Garrison | Triggered checkpoint 3498 | -7/Garrison | Triggered checkpoint 3520 | -7/Garrison | Triggered checkpoint 3553 | -7/Garrison | Discovered new exit (range 14) 3653 | -7/Garrison | Garrison Relay disabled 3726 | -7/Garrison | Triggered checkpoint 3948 | -7/Garrison | Triggered checkpoint 4003 | -7/Garrison | Discovered new exit (range 10) 4029 | -7/Garrison | Expanded RIF knowledge: Program Shield 4037 | -7/Garrison | Entered Factory 4116 | -7/Factory | Identified exit to Lower Caves 4141 | -7/Factory | Discovered new exit (range 14) 4245 | -7/Factory | Build established: Scavenger-Gunner 4385 | -7/Factory | Entered Lower Caves 4659 | -7/Lower Caves | Learned location of Zion (-6) 4701 | -7/Lower Caves | Learned 4 Factory zone layouts 5049 | -7/Lower Caves | Discovered new exit (range 6) 5066 | -7/Lower Caves | Entered another Lower Caves area 5363 | -7/Lower Caves | Spotted B-75 Beast 5382 | -7/Lower Caves | Destroyed B-75 Beast 5640 | -7/Lower Caves | Discovered new exit (range 15) 5687 | -7/Lower Caves | Entered Data Miner 5687 | -7/Data Miner | Discovered new exit (range 6) 5712 | -7/Data Miner | Met Data Miner 5745 | -7/Data Miner | Learned location of Section 7 (-2) 5745 | -7/Data Miner | Acquired the access code to Warlord's prototype stash 5760 | -7/Data Miner | Received God Mode back door access code from Data Miner 5794 | -7/Data Miner | Entered Proximity Caves 5807 | -6/Proximity Caves | Learned 12 Factory zone layouts 5832 | -6/Proximity Caves | Learned Factory stockpile data 5993 | -6/Proximity Caves | Discovered new exit (range 5) 6012 | -6/Proximity Caves | Entered Factory 6012 | -6/Factory | Evolved 2 slots: Utility x2 6013 | -6/Factory | Identified exit to Lower Caves 6091 | -6/Factory | Identified exit to Garrison 6119 | -6/Factory | Incoming investigation squad redirected 6164 | -6/Factory | Garrison activated, responded to threat 6195 | -6/Factory | Incoming investigation squad redirected 6226 | -6/Factory | Entered Garrison 6226 | -6/Garrison | Accompanied by 2 allies 6233 | -6/Garrison | Expanded RIF knowledge: Hotswap 6283 | -6/Garrison | Garrison Relay disabled 6296 | -6/Garrison | Triggered checkpoint 6367 | -6/Garrison | Phase Generator disabled 6395 | -6/Garrison | Discovered new exit (range 10) 6444 | -6/Garrison | Triggered checkpoint 6492 | -6/Garrison | Entered Factory 6492 | -5/Factory | Accompanied by 1 ally 6492 | -5/Factory | Evolved 2 slots: Propulsion x1, Weapon x1 6560 | -5/Factory | Identified exit to Garrison 6609 | -5/Factory | Discovered new exit (range 15) 6680 | -5/Factory | Build established: Derelict-Gunner 6874 | -5/Factory | Identified exit to Factory 6874 | -5/Factory | Identified exit to Upper Caves 7125 | -5/Factory | Build established: Scavenger-Gunner 7222 | -5/Factory | Cargo convoy interrupted 7677 | -5/Factory | Entered Upper Caves 7960 | -5/Upper Caves | Discovered new exit (range 9) 7973 | -5/Upper Caves | Entered another Upper Caves area 8586 | -5/Upper Caves | Acquired the password to a Derelict Tinkerer's latest research 8600 | -5/Upper Caves | Found Prototype Special Weapon 8619 | -5/Upper Caves | Discovered new exit (range 5) 8759 | -5/Upper Caves | Entered Zhirov 8759 | -5/Zhirov | Discovered new exit (range 3) 8789 | -5/Zhirov | Met Zhirov 8826 | -5/Zhirov | Learned location of Quarantine (-2) 8826 | -5/Zhirov | Learned location of Testing (-3) 8826 | -5/Zhirov | Learned location of Command (-1) 8851 | -5/Zhirov | Zhirov requested help retrieving the SGEMP Prototype 8878 | -5/Zhirov | Found Alien Artifact 8878 | -5/Zhirov | Identified Integrated Dissipator 8878 | -5/Zhirov | Installed Integrated Dissipator, increased core heat dissipation (+20) 8901 | -5/Zhirov | Found Alien Artifact 8906 | -5/Zhirov | Identified Molecular Deconstructor 9155 | -5/Zhirov | Entered Proximity Caves 9172 | -4/Proximity Caves | Spotted B-86 Titan 9195 | -4/Proximity Caves | Destroyed B-86 Titan 9344 | -4/Proximity Caves | Attracted the attention of an 0b10 checkpoint 9500 | -4/Proximity Caves | Received a Behemoth hack from an annoying Tinkerer 9549 | -4/Proximity Caves | Attracted the attention of an 0b10 outpost 9599 | -4/Proximity Caves | Destroyed 7 combat bots 9855 | -4/Proximity Caves | Found Imp. Powered Armor 9871 | -4/Proximity Caves | Found Imp. Powered Armor 9952 | -4/Proximity Caves | Learned 8 Research zone layouts 10018 | -4/Proximity Caves | Snuck into a huge 0b10 base via the rear entrance 10205 | -4/Proximity Caves | System corruption reached 10% 10422 | -4/Proximity Caves | Discovered exit to Factory (range 7) 10561 | -4/Proximity Caves | System corruption reached 30% 10673 | -4/Proximity Caves | Lost 5 parts (2n2u1w) 10784 | -4/Proximity Caves | Entered Factory 10784 | -4/Factory | Accompanied by 6 allies 10784 | -4/Factory | Evolved 2 slots: Power x1, Utility x1 10785 | -4/Factory | Identified exit to Extension 11190 | -4/Factory | Discovered new exit (range 19) 11460 | -4/Factory | P-70 Sage assimilated allied Sentinel 7a 12019 | -4/Factory | Lost 7 parts (1p2n2u2w) 12099 | -4/Factory | Entered Extension 12112 | -4/Extension | Disrupted transfer network 12346 | -4/Extension | Rescued a captive Derelict 12508 | -4/Extension | Rescued a captive Derelict 12509 | -4/Extension | Rescued a captive Derelict 12525 | -4/Extension | Build established: Scavenger-Tank 12637 | -4/Extension | Rescued a captive Derelict 12638 | -4/Extension | Rescued a captive Derelict 12747 | -4/Extension | Identified exit to Cetus 12747 | -4/Extension | Spotted B-86 Titan 12750 | -4/Extension | Rescued a captive Derelict 12769 | -4/Extension | Spotted B-86 Titan 12795 | -4/Extension | Allies destroyed B-86 Titan 12802 | -4/Extension | Allies destroyed B-86 Titan 12826 | -4/Extension | Lost 6 parts (3u3w) 13125 | -4/Extension | Rescued a captive Derelict 13127 | -4/Extension | Rescued a captive Derelict 13153 | -4/Extension | Rescued A7 13204 | -4/Extension | Rescued a captive Derelict 13345 | -4/Extension | Repaired Coil Gun 13525 | -4/Extension | Discovered new exit (range 10) 13569 | -4/Extension | Entered Cetus 13569 | -4/Cetus | Accompanied by 16 allies (A7) 13574 | -4/Cetus | Acquired a Cetus Manufacturing Module code from A7 13587 | -4/Cetus | Spotted Cetus Guard 13587 | -4/Cetus | Spotted Cetus Guard 13587 | -4/Cetus | Spotted Cetus Guard 13590 | -4/Cetus | Spotted Cetus Guard 13607 | -4/Cetus | Allies destroyed Cetus Guard 13608 | -4/Cetus | Allies destroyed Cetus Guard 13608 | -4/Cetus | Destroyed Cetus Guard 13609 | -4/Cetus | Allies destroyed Cetus Guard 13729 | -4/Cetus | Started Cetus Manufacturing Module 13754 | -4/Cetus | Manufactured an Enhanced Grunt 13779 | -4/Cetus | Manufactured an Enhanced Grunt 13804 | -4/Cetus | Manufactured an Enhanced Grunt 13821 | -4/Cetus | Discovered new exit (range 20) 13829 | -4/Cetus | Manufactured an Enhanced Grunt 13854 | -4/Cetus | Manufactured an Enhanced Grunt 13892 | -4/Cetus | Spotted Cetus Guard 13893 | -4/Cetus | Spotted Cetus Guard 13895 | -4/Cetus | Spotted Cetus Guard 13896 | -4/Cetus | Spotted Cetus Guard 13903 | -4/Cetus | Discovered new exit (range 20) 13904 | -4/Cetus | Allies destroyed Cetus Guard 13911 | -4/Cetus | Destroyed Cetus Guard 13912 | -4/Cetus | Allies destroyed Cetus Guard 13912 | -4/Cetus | Allies destroyed Cetus Guard 13922 | -4/Cetus | Met Revision 17 14096 | -4/Cetus | Entered Archives 14096 | -4/Archives | Accompanied by 14 allies (A7) 14126 | -4/Archives | Discovered new exit (range 19) 14132 | -4/Archives | Discovered new exit (range 19) 14187 | -4/Archives | Entered Hub_04(d) 14187 | -4/Hub_04(d) | Accompanied by 12 allies 14212 | -4/Hub_04(d) | Discovered new exit (range 20) 14269 | -4/Hub_04(d) | Discovered new exit (range 20) 14423 | -4/Hub_04(d) | Incoming investigation squad redirected 14490 | -4/Hub_04(d) | Network Hub disabled 14521 | -4/Hub_04(d) | Spotted Lightning 14526 | -4/Hub_04(d) | Spotted Lightning 14527 | -4/Hub_04(d) | Spotted Lightning 14535 | -4/Hub_04(d) | Spotted Lightning 14541 | -4/Hub_04(d) | System corruption reached 10% 14544 | -4/Hub_04(d) | Entered Research 14544 | -3/Research | Accompanied by 1 ally 14544 | -3/Research | Evolved 2 slots: Utility x2 14545 | -3/Research | Identified exit to Research 14719 | -3/Research | Destroyed 7 combat bots 14726 | -3/Research | Found Prototype Device 14726 | -3/Research | Identified Exp. Focal Shield 14741 | -3/Research | Found Exp. Focal Shield 14794 | -3/Research | First assault squad dispatched 14809 | -3/Research | Incoming assault squad redirected 15089 | -3/Research | Garrison activated, responded to threat 15162 | -3/Research | Spotted B-86 Titan 15190 | -3/Research | Destroyed B-86 Titan 15248 | -3/Research | High security lockdown imminent 15280 | -3/Research | Destroyed 10 combat bots 15328 | -3/Research | High security lockdown engaged 15369 | -3/Research | Found Prototype Processor 15370 | -3/Research | Identified Exp. Signal Interpreter 15385 | -3/Research | Released all parts (15) 15386 | -3/Research | Identified Transdimensional Reconstructor 15386 | -3/Research | Warped through subspace 15410 | -3/Research | Lost 14 parts (1p1n6u6w) 15488 | -3/Research | Spotted B-86 Titan 15494 | -3/Research | Found Prototype Processor 15494 | -3/Research | Identified Spectral Analyzer 15504 | -3/Research | Core integrity fell below 50% 15591 | -3/Research | Spotted Striker 15596 | -3/Research | Core integrity fell below 20% 15599 | -3/Research | System corruption reached 10% 15601 | -3/Research | Destroyed by H-77 Assassin with Coil Gun Last Messages --------------- 15592_ H-77 Assassin unfolds itself. 15592_ I-47 Archangel unfolds itself. 15593_ C-30 ARC bursts open, deploying its payload. 15593_ G-73 Enforcer unfolds itself. 15593_ G-67 Veteran unfolds itself. 15593_ L-61 Swordsman unfolds itself. 15593_ G-67 Veteran unfolds itself. 15594_ Knocked back. 15594_ P-80 Master resets Striker, system corruption cleaned. 15595_ Penetrated by Slug. 15595_ Slug penetrates Wall. 15598_ ALERT: Heavy assault forces dispatched. 15598_ Penetrated by Slug. 15598_ Arm. Medium Treads destroyed. 15598_ Slug penetrates Wall. 15599_ Hdn. Centrium Wheel blown off. 15599_ Spectral Analyzer blown off. 15599_ E-15 Imp destroyed. 15600_ Slug penetrates P-80 Master. 15601_ Penetrated by Slug. Map ----- +----------------------------------------------------+ | # %! ![ ## #????# #????????????# | | ######+###### #????# ! #????????????# | | [=!*% #????# """ #????????????+ | | !![= #????# ! """ #????????????# | | #????# """ #????????????# | | #????# !#????????????# | | ###### ########????# #????????????# | | # #???????????# ! #?????######## | | # #################+########### | | + %! | | # =% | | # % | | """ ?# ###+### | | """ ?########+########### #=%% |# | | """???????? ????????# # !*= # | | ###?????? ??????# /% # | | ????????# """ ####### #% # | | ????????# """ # # # # | | ????????# """ # # #= # | | ????????#! # # %############### # | | ????????# # # # #????# !# | | ????????# # #i g%# #????# # | | ????????#######???# + h %+ #????# % # | | ??????????????????# #ph # #????# % # | | ??????????????????# ; l g# #????# # | | ??????????????????# #@g K# #????####### | | ??????????????????# #=p # #??????????? | | ??????????????????# #%h # #??????????? | | ??????????????????# #= m# #??????????? | | ??????????????????####### ##########??????????? | | ????????????????????????# % #???????????????????? | | ???????????????########## #???????????????????? | | ??????????????? # #???????????????????? | | ???????????????? # % #???????????????????? | | ???????????????? # =#???????????????????? | | ??????????????? """ # #???????????????????? | | ??????????????? """ # #???????????????????? | | ??????????????" """ + #???????????????????? | | ?????????????? """ # ############????????? | | ??????????????" """ # # * #????????? | | ??????????????? # # #?????????? | | ??????????????" # # #?????????? | | ?????????????? # =# !!! #?????????? | | ????????????? # % + !!! #???####### | | ????????????############# # !! #???# | | ????????????????????????# # ! #???# = | | ??????????????########### # #???# | | ??????????????# """"" # ###########???# | | ??????????????# ""T"" # #?????????????# = | | ??????????????# # ############## | +----------------------------------------------------+ Best States ------------- Heat Dissipation 97 Coolant Potential 80 Energy Generation 37 Energy Capacity 1025 Matter Stores 300 Matter Capacity 300 Sight Range 24 Terrain Scan Density 10 Armor Coverage 1200 Resistance: KI 30 Resistance: TH 30 Propulsion Shielding 66 Utility Shielding 90 Evasion (%) 55 Targeting Accuracy 6 Target Analysis 8 Core Analysis 6 Armor Integrity Analysis 40 Recoil Reduction 4 Offensive Hacking 25 Item Schematics ----------------- Combat Drone Bay | -7/Data Miner | Free Lgt. Regenerative Plating | -7/Data Miner | Free Cld. Cesium-ion Thruster | -7/Data Miner | Free Gravity Neutralizer | -7/Data Miner | Free Prc. Rocket Launcher | -7/Data Miner | Free Gyrokinetic Inverter | -7/Data Miner | Free Adv. Salvage Targeting Computer | -7/Data Miner | Free Adv. Plasma Cannon | -7/Data Miner | Free Hvy. Machine Gun | -7/Data Miner | Free Imp. Antigrav System | -7/Data Miner | Free Cmb. Gravmag System | -7/Data Miner | Free Assault Drone Bay | -5/Zhirov | Free Exp. Heat Sink | -5/Zhirov | Free Exp. Optical Array | -5/Zhirov | Free Imp. Arc Thrower | -5/Zhirov | Free Robot Schematics ------------------ R-10 Processor | -7/Data Miner | Free B-48 Gladiator | -7/Data Miner | Free A-15 Conveyor | -7/Data Miner | Free G-50 Soldier | -7/Data Miner | Free L-41 Fighter | -7/Data Miner | Free Fabricated ------------ Nothing Alien Tech Used ----------------- Integrated Dissipator Transdimensional Reconstructor Achievements -------------- None Challenges ------------ None Game ------ Seed FactoryMasterMagmablaster Manual? 0 Play Time 02:46:39 Cumulative 552.2 hours Start 2022.09.30 @ 09:51:17 End 2022.10.01 @ 09:57:05 Sessions 3 Manual Loads 0 Difficulty Rogue Special Mode None Game No. 344 Rogue 344 Adventurer 0 Explorer 0 Win Type - Total 37 Types 24/1/6/6/0/0/0/0/0 Lore% 82 Gallery% 84 Achievement% 78 Wizard Run 0 Options --------- ASCII 1 Keyboard 1 Movement Numpad Keybinds 0 Fullscreen 1 Font 36/X11 Map View 76x50 Tactical HUD 1 Map Filters NONE Filters NONE Steam 1 RUN: 2360a445-e22d-45a5-9faa-cf04535439c6